fUST/lending_fUST_20240121
["ID","MTS","AMOUNT","RATE_DAILY","PERIOD"]
[312336521,1705791477164,-154.75239617,0.00028798,4]
[312336522,1705791477188,-2845.24760383,0.00032,4]
[312336523,1705791489567,-349.90370515,0.00031998,4]
[312336524,1705791489592,-1650.09629485,0.00032,4]
[312336525,1705791492311,-2000.0,0.00032,4]
[312336548,1705792232477,-154.75239617,0.00028766,4]
[312336549,1705792232487,-160.511939,0.00028767,2]
[312336550,1705792232496,-276.42806275,0.00028798,2]
[312336758,1705792238656,-30.00281037,0.00028798,2]
[312336759,1705792238666,-997.71986329,0.000288,2]
[312336760,1705792238675,-166.666666,0.00030086,2]
[312336761,1705792238685,-8971.5281674,0.00030433,2]
[312336762,1705792238694,-2138.87244015,0.000319,2]
[312336763,1705792238703,-227.9236882,0.000319,2]
[312336764,1705792238712,-5570.96,0.0003199,3]
[312336765,1705792238722,-4642.47,0.0003199,3]
[312336766,1705792238863,-154.73694719,0.00031998,4]
[312336767,1705792238873,-154.73694719,0.00031998,2]
[312336768,1705792238883,-154.73694719,0.00031998,4]
[312336769,1705792238893,-191.48,0.00031999,2]
[312336770,1705792238901,-191.49,0.00031999,2]
[312336771,1705792238911,-191.49,0.00031999,2]
[312336772,1705792238920,-256.58822078,0.00032,3]
[312336773,1705792238930,-277575.22514912,0.00032,4]
[312336774,1705792238941,-154.75239617,0.00032,4]
[312336775,1705792238951,-283.12887752,0.00032,3]
[312336776,1705792238960,-198.8089634,0.00032,2]
[312336777,1705792238969,-4321.29306998,0.00032,4]
[312336778,1705792238978,-980.8946807,0.00032,4]
[312336779,1705792238996,-150.5,0.00032502,30]
[312336780,1705792239009,-150.5,0.00032512,30]
[312336781,1705792239019,-150.5,0.00032522,30]
[312336782,1705792239030,-250.0,0.00032876,7]
[312336783,1705792239040,-660.24671343,0.000329,2]
[312336784,1705792239050,-622.38553293,0.00032939,2]
[312336785,1705792239059,-673.56690701,0.00032939,2]
[312336786,1705792239069,-171.89551497,0.00032939,2]
[312336787,1705792239079,-154.75239617,0.00033,4]
[312336788,1705792239088,-2846.05665284,0.00033,2]
[312336789,1705792239098,-3965.18639359,0.00033346,4]
[312336790,1705792239108,-15073.6790735,0.00033368,5]
[312336791,1705792239117,-4646.55910212,0.00033456,4]
[312336792,1705792239127,-1550.76333748,0.00034,3]
[312336793,1705792239137,-200.0,0.00034079,15]
[312336794,1705792239147,-500.0,0.00034246,7]
[312336795,1705792239156,-154.75239617,0.00034293,2]
[312336796,1705792239166,-160.511939,0.00034932,2]
[312336797,1705792239175,-500.0,0.00034999,2]
[312336798,1705792239185,-393.1441642,0.00034999,2]
[312336799,1705792239194,-493.79338156,0.00034999,2]
[312336800,1705792239203,-500.0,0.00034999,2]
[312336801,1705792239212,-500.0,0.00034999,2]
[312336802,1705792239222,-500.0,0.00034999,2]
[312336803,1705792239232,-500.0,0.00034999,2]
[312336804,1705792239241,-500.0,0.00034999,2]
[312336805,1705792239251,-498.71561749,0.00034999,2]
[312336806,1705792239260,-500.0,0.00034999,2]
[312336807,1705792239270,-500.0,0.00034999,2]
[312336808,1705792239280,-500.0,0.00034999,2]
[312336809,1705792239289,-500.0,0.00034999,2]
[312336810,1705792239298,-500.0,0.00034999,2]
[312336811,1705792239308,-500.0,0.00034999,2]
[312336812,1705792239317,-500.0,0.00034999,2]
[312336813,1705792239326,-637.57879332,0.00034999,2]
[312336814,1705792239336,-412.39562597,0.00034999,2]
[312336815,1705792239346,-500.0,0.00034999,2]
[312336816,1705792239355,-500.0,0.00034999,2]
[312336817,1705792239364,-500.0,0.00034999,2]
[312336818,1705792239373,-500.0,0.00034999,2]
[312336819,1705792239383,-500.0,0.00034999,2]
[312336820,1705792239392,-2085.08363542,0.00035,4]
[312336821,1705792239401,-154.75239617,0.00035,4]
[312336822,1705792239411,-333.12649891,0.00035,4]
[312336823,1705792239421,-154.75239617,0.00035,6]
[312336824,1705792239430,-591.88726683,0.00035,2]
[312336825,1705792239439,-548.14664073,0.00035,7]
[312336826,1705792239449,-1038.30335638,0.00035,2]
[312336827,1705792239458,-2644.39342573,0.00035,20]
[312336828,1705792239467,-154.75239617,0.00035,2]
[312336829,1705792239477,-31980.30894113,0.00035,4]
[312336830,1705792239486,-2356.16401148,0.00035,2]
[312336831,1705792239496,-6763.78500734,0.00035,4]
[312336832,1705792239507,-500.0,0.000353,7]
[312336833,1705792239517,-500.0,0.000353,7]
[312336834,1705792239527,-4425.50824305,0.000355,14]
[312336835,1705792239537,-500.0,0.000356,7]
[312336836,1705792239547,-500.0,0.00035616,2]
[312336837,1705792239557,-500.0,0.00035616,2]
[312336838,1705792239566,-278.72290024,0.00035616,2]
[312336839,1705792239578,-646.08100751,0.00035616,7]
[312336840,1705792239590,-500.0,0.00035616,2]
[312336841,1705792239600,-500.0,0.00035616,2]
[312336842,1705792239611,-500.0,0.00035616,2]
[312336843,1705792239621,-500.0,0.00035616,2]
[312336844,1705792239630,-500.0,0.00035616,2]
[312336845,1705792239640,-500.0,0.00035616,2]
[312336846,1705792239649,-500.0,0.00035616,2]
[312336847,1705792239660,-500.0,0.00035616,2]
[312336848,1705792239671,-500.0,0.00035616,2]
[312336849,1705792239681,-500.0,0.00035616,2]
[312336850,1705792239691,-500.0,0.00035616,2]
[312336851,1705792239700,-500.0,0.00035616,2]
[312336852,1705792239710,-500.0,0.00035616,2]
[312336853,1705792239719,-500.0,0.00035616,2]
[312336854,1705792239729,-182.36949,0.00035616,120]
[312336855,1705792239739,-160.81104418,0.00035749,2]
[312336856,1705792239749,-500.0,0.000359,7]
[312336857,1705792239758,-395.0122332,0.00035956,2]
[312336858,1705792239767,-253.78965985,0.0003624,2]
[312336859,1705792239777,-418.92258382,0.00037,2]
[312336860,1705792239787,-217.03038898,0.0003724,2]
[312336861,1705792239796,-280.0,0.00037486,15]
[312336862,1705792239806,-1000.0,0.00037777,10]
[312336863,1705792239816,-1000.0,0.00037777,10]
[312336864,1705792239825,-660.24671343,0.000379,2]
[312336865,1705792239835,-365.28021115,0.00037912,5]
[312336866,1705792239845,-5000.0,0.00037998,7]
[312336867,1705792239854,-988.555845,0.00038,60]
[312336868,1705792239867,-2139.23248446,0.00038,4]
[312336869,1705792239877,-636.06098612,0.00038,2]
[312336870,1705792239886,-172.0,0.00038,2]
[312336871,1705792239895,-5000.0,0.00038027,7]
[312336872,1705792239906,-1273.92331985,0.00038092,2]
[312336873,1705792239918,-575.0,0.000381,2]
[312336874,1705792239928,-46670.9173693,0.00038103,7]
[312336875,1705792239938,-525.78711599,0.00038103,4]
[312336876,1705792239950,-150.0,0.00038138,2]
[312336877,1705792239961,-150.0,0.00038138,2]
[312336878,1705792239972,-483.84169036,0.00038143,7]
[312336879,1705792239990,-49516.15830964,0.00038143,7]
[312336880,1705792240001,-243.452,0.00038163,2]
[312336882,1705792240011,-50000.0,0.00038277,7]
[312336884,1705792240024,-151.0,0.00038325,4]
[312336886,1705792240034,-404.9851975,0.00038356,2]
[312336888,1705792240044,-151.0,0.00038548,4]
[312336890,1705792240055,-500.0,0.000386,7]
[312336892,1705792240064,-151.0,0.00038772,4]
[312336893,1705792240075,-500.0,0.000389,7]
[312336894,1705792240084,-150.72868836,0.00038977,2]
[312336895,1705792240095,-250.04080655,0.00038977,2]
[312336896,1705792240104,-151.0,0.00038995,4]
[312336897,1705792240114,-1000.0,0.00039,39]
[312336898,1705792240124,-300.0,0.00039,4]
[312336899,1705792240134,-10990.39266955,0.00039,2]
[312336900,1705792240144,-2800.0,0.00039,3]
[312336901,1705792240154,-1500.0,0.00039,2]
[312336902,1705792240163,-151.0,0.00039218,4]
[312336903,1705792240173,-151.0,0.00039441,4]
[312336904,1705792240183,-245.17457541,0.000396,30]
[312336905,1705792240192,-301.45737672,0.00039632,4]
[312336906,1705792240202,-151.0,0.00039664,4]
[312336907,1705792240213,-170.87,0.00039686,2]
[312336908,1705792240223,-170.87,0.00039686,2]
[312336909,1705792240233,-170.87,0.00039686,2]
[312336910,1705792240242,-170.87,0.00039686,2]
[312336911,1705792240252,-170.87,0.00039686,2]
[312336912,1705792240263,-170.87,0.00039686,2]
[312336913,1705792240273,-170.87,0.00039686,2]
[312336914,1705792240283,-500.0,0.00039686,4]
[312336915,1705792240292,-500.0,0.00039686,4]
[312336916,1705792240302,-537.7359098,0.00039686,4]
[312336917,1705792240311,-476.03110238,0.00039686,4]
[312336918,1705792240320,-500.0,0.00039686,4]
[312336919,1705792240330,-306.1519178,0.00039686,4]
[312336920,1705792240339,-297.82193526,0.00039686,4]
[312336921,1705792240349,-500.0,0.00039686,4]
[312336922,1705792240359,-500.0,0.00039686,4]
[312336923,1705792240369,-500.0,0.00039686,4]
[312336924,1705792240379,-299.2293705,0.00039686,7]
[312336925,1705792240388,-500.0,0.00039686,7]
[312336926,1705792240398,-500.0,0.00039686,7]
[312336927,1705792240407,-296.27602893,0.00039686,7]
[312336928,1705792240416,-603.18409499,0.00039686,7]
[312336929,1705792240428,-500.0,0.00039686,7]
[312336930,1705792240438,-500.0,0.00039686,7]
[312336931,1705792240447,-500.0,0.00039686,7]
[312336932,1705792240457,-500.0,0.00039686,7]
[312336933,1705792240466,-500.0,0.00039686,7]
[312336934,1705792240476,-500.0,0.00039686,7]
[312336935,1705792240485,-500.0,0.00039686,7]
[312336936,1705792240497,-434.29671948,0.00039686,7]
[312336937,1705792240506,-500.0,0.00039686,7]
[312336938,1705792240516,-500.0,0.00039686,7]
[312336939,1705792240525,-500.0,0.00039686,7]
[312336940,1705792240535,-500.0,0.00039686,7]
[312336941,1705792240545,-19944.52385428,0.00039687,2]
[312336942,1705792240557,-12902.35164208,0.00039687,2]
[312337033,1705792247564,-1671.22849197,0.00039677,3]
[312337125,1705793431751,-517.49938136,0.000287,5]
[312337128,1705793431761,-154.73694719,0.00028731,2]
[312337131,1705793431770,-154.73694719,0.00028732,4]
[312337134,1705793431780,-161.550482,0.00028767,2]
[312337137,1705793431789,-166.666666,0.00029453,2]
[312337140,1705793431797,-207.4008989,0.00030363,2]
[312337143,1705793431806,-19079.20757856,0.000319,2]
[312337291,1705793438084,-6394.54282399,0.000319,2]
[312337303,1705793438194,-42597.78691422,0.000319,2]
[312337305,1705793438205,-175.7035913,0.000319,2]
[312337307,1705793438216,-4033.37,0.00031956,3]
[312337309,1705793438225,-1045.90652664,0.00031966,4]
[312337311,1705793438235,-150.5,0.0003197,30]
[312337313,1705793438245,-3361.14,0.00031989,3]
[312337315,1705793438254,-270.6351013,0.00031998,4]
[312337317,1705793438263,-154.96023507,0.00031998,4]
[312337318,1705793438273,-327.38324213,0.00031998,4]
[312337320,1705793438282,-154.95351395,0.00031998,4]
[312337322,1705793438292,-345.45929412,0.00031998,4]
[312337324,1705793438302,-154.95351395,0.00031998,4]
[312337326,1705793438311,-1279.77469611,0.00031998,4]
[312337328,1705793438320,-682.20107228,0.00031998,4]
[312337330,1705793438329,-238.14143998,0.00031998,4]
[312337332,1705793438338,-7957.69581218,0.00031999,2]
[312337334,1705793438349,-413.57006194,0.00031999,3]
[312337336,1705793438358,-498.7156175,0.00031999,2]
[312337338,1705793438367,-500.0,0.00031999,2]
[312337340,1705793438376,-500.0,0.00031999,2]
[312337342,1705793438385,-493.79338155,0.00031999,2]
[312337343,1705793438394,-500.0,0.00031999,2]
[312337345,1705793438403,-500.0,0.00031999,2]
[312337347,1705793438412,-500.0,0.00031999,2]
[312337349,1705793438422,-449.83262064,0.00031999,2]
[312337351,1705793438431,-500.0,0.00031999,2]
[312337353,1705793438439,-500.0,0.00031999,2]
[312337355,1705793438448,-500.0,0.00031999,2]
[312337357,1705793438458,-500.0,0.00031999,2]
[312337359,1705793438467,-500.0,0.00031999,2]
[312337361,1705793438476,-617.76954664,0.00031999,2]
[312337362,1705793438485,-500.0,0.00031999,2]
[312337364,1705793438494,-2985.35874501,0.00032,4]
[312337366,1705793438503,-285201.86665853,0.00032,4]
[312337367,1705793438512,-154.73694719,0.00032,4]
[312337368,1705793438521,-1094.47895322,0.000325,20]
[312337369,1705793438530,-250.0,0.00032876,7]
[312337370,1705793438539,-150.5,0.00032919,30]
[312337371,1705793438548,-150.5,0.00032929,30]
[312337372,1705793438557,-3558.41709403,0.00032994,2]
[312337373,1705793438566,-1064.44637709,0.00032994,2]
[312337374,1705793438575,-474.93029636,0.00032994,2]
[312337375,1705793438584,-210.0,0.00032994,2]
[312337376,1705793438592,-577.3858695,0.00032994,2]
[312337377,1705793438602,-154.73694719,0.00033,4]
[312337378,1705793438610,-165.0,0.00033,2]
[312337379,1705793438619,-171.0,0.00033,2]
[312337380,1705793438628,-166.666666,0.00033468,2]
[312337381,1705793438637,-3122.3350124,0.00033841,5]
[312337382,1705793438646,-220.55,0.00033865,2]
[312337383,1705793438654,-220.55,0.00033865,2]
[312337384,1705793438663,-50000.0,0.00033866,6]
[312337385,1705793438672,-62524.39659178,0.00033866,6]
[312337386,1705793438681,-3060.67961228,0.0003394,4]
[312337387,1705793438690,-4835.31814182,0.00033991,4]
[312337388,1705793438699,-1102.17588634,0.00034043,4]
[312337389,1705793438708,-151.0,0.000343,2]
[312337390,1705793438716,-175.70359127,0.00034462,2]
[312337391,1705793438725,-151.0,0.00034735,2]
[312337392,1705793438734,-150.74373565,0.0003484,2]
[312337394,1705793438743,-2085.08363542,0.00035,4]
[312337396,1705793438752,-154.73694719,0.00035,4]
[312337398,1705793438762,-591.88726683,0.00035,2]
[312337400,1705793438771,-154.73694719,0.00035,6]
[312337402,1705793438781,-333.12649891,0.00035,4]
[312337404,1705793438790,-250.0,0.00035089,15]
[312337406,1705793438799,-151.0,0.0003517,4]
[312337407,1705793438808,-500.0,0.000353,7]
[312337409,1705793438819,-500.0,0.000356,7]
[312337412,1705793438830,-151.0,0.00035605,4]
[312337414,1705793438839,-182.36949,0.00035616,120]
[312337416,1705793438847,-154.73694719,0.00035709,7]
[312337417,1705793438857,-151.0,0.0003604,4]
[312337419,1705793438866,-151.0,0.00036475,4]
[312337421,1705793438875,-220.08223781,0.000369,2]
[312337423,1705793438885,-151.0,0.0003691,4]
[312337425,1705793438894,-175.70359127,0.00037025,2]
[312337427,1705793438903,-151.0,0.00037346,4]
[312337430,1705793438913,-151.0,0.00037781,4]
[312337431,1705793438921,-2139.23248446,0.00038,4]
[312337433,1705793438958,-173.0,0.00038,2]
[312337435,1705793438967,-5000.0,0.00038196,7]
[312337437,1705793438977,-151.0,0.00038216,4]
[312337439,1705793439000,-404.9851975,0.00038356,2]
[312337441,1705793439009,-50000.0,0.00038496,7]
[312337442,1705793439020,-350.0,0.00038598,30]
[312337444,1705793439030,-806.0,0.000386,2]
[312337446,1705793439039,-151.0,0.00038651,4]
[312337448,1705793439048,-150.74373565,0.00038711,2]
[312337450,1705793439057,-250.06576819,0.00038711,2]
[312337452,1705793439066,-156.8123783,0.00038778,2]
[312337454,1705793439075,-155.0,0.00039,2]
[312337456,1705793439084,-1500.0,0.00039,2]
[312337458,1705793439093,-243.452,0.00039032,2]
[312337460,1705793439104,-151.0,0.00039086,4]
[312337462,1705793439113,-301.4874713,0.00039361,4]
[312337464,1705793439122,-151.0,0.00039521,4]
[312337466,1705793439131,-694.93684385,0.00039542,2]
[312337468,1705793439141,-175.70359127,0.00039587,2]
[312337470,1705793439149,-245.17457541,0.000396,30]
[312337472,1705793439158,-1273.92331985,0.00039665,2]
[312337487,1705793439295,-686.62627649,0.00039677,4]
[312337489,1705793439305,-525.78711599,0.00039677,4]
[312337491,1705793439314,-283.12887752,0.00039677,3]
[312337493,1705793439323,-2800.0,0.00039677,3]
[312337495,1705793439332,-251.55793814,0.00039685,2]
[312337497,1705793439341,-154.73694719,0.00039685,2]
[312337498,1705793439350,-475.57582194,0.00039685,20]
[312337499,1705793439359,-160.0,0.00039686,30]
[312337500,1705793439368,-160.0,0.00039686,30]
[312337501,1705793439377,-3439.02090908,0.00039686,4]
[312337502,1705793439385,-151.0,0.00039686,2]
[312337503,1705793439394,-151.0,0.00039686,2]
[312337504,1705793439404,-151.0,0.00039686,2]
[312337505,1705793439413,-151.0,0.00039686,2]
[312337506,1705793439421,-151.0,0.00039686,2]
[312337507,1705793439431,-500.0,0.00039686,4]
[312337508,1705793439440,-500.0,0.00039686,4]
[312337509,1705793439448,-476.03110238,0.00039686,4]
[312337510,1705793439457,-537.7359098,0.00039686,4]
[312337511,1705793439466,-500.0,0.00039686,4]
[312337512,1705793439474,-500.0,0.00039686,4]
[312337513,1705793439483,-297.82193526,0.00039686,4]
[312337514,1705793439491,-500.0,0.00039686,4]
[312337515,1705793439500,-306.1519178,0.00039686,4]
[312337516,1705793439509,-500.0,0.00039686,4]
[312337517,1705793439517,-500.0,0.00039686,7]
[312337518,1705793439526,-500.0,0.00039686,7]
[312337519,1705793439535,-500.0,0.00039686,7]
[312337520,1705793439544,-463.32715998,0.00039686,7]
[312337521,1705793439553,-500.0,0.00039686,7]
[312337522,1705793439562,-500.0,0.00039686,7]
[312337523,1705793439572,-500.0,0.00039686,7]
[312337524,1705793439581,-500.0,0.00039686,7]
[312337525,1705793439590,-500.0,0.00039686,7]
[312337526,1705793439600,-462.37446548,0.00039686,7]
[312337527,1705793439609,-190478.17536565,0.00039687,2]
[312337639,1705793442758,-173.0,0.00038,2]
[312337642,1705793442767,-587.42146064,0.00039687,2]
[312337644,1705793442778,-1844.04378927,0.00039687,2]
[312337773,1705794407080,-154.73694719,0.00021995,2]
[312337774,1705794407103,-157.82567358,0.00021996,2]
[312337775,1705794432269,-0.78445884,0.00021996,2]
[312337776,1705794432290,-260.66256875,0.00021996,7]
[312337777,1705794432313,-154.73694719,0.00021997,4]
[312337778,1705794432334,-2835.44199559,0.00021999,2]
[312337779,1705794432355,-292.78022956,0.00022,4]
[312337780,1705794432377,-6994.96314634,0.00026561,2]
[312337781,1705794446083,-154.73694719,0.00021995,4]
[312337782,1705794446109,-1467.7685682,0.00023999,2]
[312337783,1705794446129,-559.20146177,0.00026561,2]
[312337830,1705794631920,-154.73694719,0.0002656,4]
[312337832,1705794631929,-812.17405281,0.00026561,2]
[312337835,1705794631945,-16533.66133908,0.00026561,2]
[312337837,1705794631954,-260.66256875,0.00028596,7]
[312337838,1705794631963,-166.666666,0.00028597,2]
[312337840,1705794631972,-161.550482,0.00028767,2]
[312337842,1705794631981,-235.2961701,0.00028767,2]
[312337845,1705794631991,-6300.80360656,0.00030398,4]
[312337846,1705794632000,-166.387399,0.00030536,2]
[312337848,1705794632009,-171.72237573,0.000319,2]
[312337850,1705794632018,-1045.90652664,0.00031966,4]
[312337852,1705794632028,-150.5,0.0003197,30]
[312337854,1705794632037,-150.5,0.0003198,30]
[312337856,1705794632046,-150.5,0.0003199,30]
[312337857,1705794632055,-2338.98,0.0003199,3]
[312337859,1705794632064,-154.96023507,0.00031998,4]
[312337861,1705794632074,-682.20107228,0.00031998,4]
[312337863,1705794632083,-238.14143998,0.00031998,4]
[312337864,1705794632092,-270.6351013,0.00031998,4]
[312337866,1705794632101,-327.38324213,0.00031998,4]
[312337868,1705794632110,-154.95351395,0.00031998,4]
[312337869,1705794632119,-154.95351395,0.00031998,4]
[312337871,1705794632128,-7957.69581218,0.00031998,2]
[312337873,1705794632138,-444.23117602,0.00031998,4]
[312337875,1705794632147,-895.69502216,0.00031998,6]
[312337876,1705794632156,-1570.89243892,0.00031998,4]
[312337877,1705794632165,-4012.5594856,0.00031998,4]
[312337878,1705794632175,-270.03908649,0.00031998,4]
[312337879,1705794632184,-345.45929412,0.00031998,4]
[312337880,1705794632194,-1279.77469611,0.00031998,4]
[312337881,1705794632203,-170.87,0.00031999,2]
[312337882,1705794632212,-170.87,0.00031999,2]
[312337883,1705794632222,-413.57006194,0.00031999,3]
[312337884,1705794632231,-38512.580071,0.00032,4]
[312337909,1705794637992,-1028.83679833,0.00032,4]
[312337910,1705794638050,-437.90229,0.00032,4]
[312337911,1705794638060,-2326.66091167,0.00032,4]
[312337912,1705794638072,-242895.88658753,0.00032,4]
[312337913,1705794638082,-155.22821769,0.00032,4]
[312337914,1705794638091,-154.73694719,0.00032,4]
[312337915,1705794638099,-150.72868836,0.00032438,2]
[312337916,1705794638109,-1094.47895322,0.000325,20]
[312337917,1705794638118,-250.0,0.00032876,7]
[312337918,1705794638127,-184.094376,0.00032877,2]
[312337919,1705794638136,-3733.42129381,0.00032994,2]
[312337920,1705794638145,-318.74674313,0.00032994,2]
[312337921,1705794638154,-254.17264958,0.00032994,2]
[312337922,1705794638163,-154.73694719,0.00033,4]
[312337923,1705794638173,-165.0,0.00033,2]
[312337924,1705794638182,-171.0,0.00033,2]
[312337925,1705794638191,-200.0,0.00033437,15]
[312337926,1705794638200,-171.72237571,0.00033822,2]
[312337927,1705794638339,-170.87,0.00034079,2]
[312337928,1705794638352,-500.0,0.00034079,2]
[312337929,1705794638362,-465.94539886,0.00034079,2]
[312337930,1705794638371,-500.0,0.00034079,2]
[312337931,1705794638382,-498.7156175,0.00034079,2]
[312337932,1705794638391,-500.0,0.00034079,2]
[312337933,1705794638401,-266.77587701,0.00034079,2]
[312337934,1705794638410,-500.0,0.00034079,2]
[312337935,1705794638420,-500.0,0.00034079,2]
[312337936,1705794638429,-500.0,0.00034079,2]
[312337937,1705794638438,-500.0,0.00034079,2]
[312337938,1705794638447,-500.0,0.00034079,2]
[312337939,1705794638456,-500.0,0.00034079,2]
[312337940,1705794638465,-500.0,0.00034079,2]
[312337941,1705794638475,-628.34214062,0.00034079,2]
[312337942,1705794638484,-500.0,0.00034079,2]
[312337943,1705794638493,-617.76954664,0.00034079,2]
[312337944,1705794638502,-90218.37701717,0.0003408,6]
[312337945,1705794638512,-30553.43581067,0.0003408,6]
[312337946,1705794638521,-2321.64857673,0.0003408,4]
[312337947,1705794638530,-156.8123783,0.00034178,2]
[312337948,1705794638540,-591.88726683,0.00035,2]
[312337949,1705794638553,-333.12649891,0.00035,4]
[312337950,1705794638562,-475.57582194,0.00035,20]
[312337951,1705794638571,-251.55793814,0.00035,2]
[312337952,1705794638580,-3439.02090908,0.00035,4]
[312337953,1705794638590,-154.73694719,0.00035,6]
[312337954,1705794638599,-154.73694719,0.00035,4]
[312337955,1705794638608,-2085.08363542,0.00035,4]
[312337956,1705794638617,-196.0,0.00035,2]
[312337957,1705794638627,-500.0,0.000353,7]
[312337958,1705794638637,-151.0,0.00035377,4]
[312337959,1705794638646,-500.0,0.000356,7]
[312337960,1705794638655,-182.3694903,0.00035616,120]
[312337961,1705794638664,-154.73694719,0.00035718,7]
[312337962,1705794638673,-171.72237571,0.00035744,2]
[312337963,1705794638683,-151.0,0.00035756,4]
[312337964,1705794638692,-150.72868836,0.00036042,2]
[312337965,1705794638702,-250.04080655,0.00036042,2]
[312337966,1705794638711,-151.0,0.00036134,4]
[312337967,1705794638721,-151.0,0.00036512,4]
[312337968,1705794638730,-301.45737672,0.00036648,4]
[312337969,1705794638740,-280.0,0.0003678,15]
[312337970,1705794638749,-151.0,0.00036891,4]
[312337971,1705794638759,-1000.0,0.00037,30]
[312337972,1705794638768,-602.91475344,0.00037264,7]
[312337973,1705794638778,-151.0,0.00037269,4]
[312337974,1705794638787,-635.51281958,0.00037587,2]
[312337975,1705794638797,-151.0,0.00037648,4]
[312337976,1705794638806,-171.72237571,0.00037665,2]
[312337977,1705794638815,-1000.0,0.00037809,10]
[312337978,1705794638825,-166.69387103,0.0003789,4]
[312337979,1705794638834,-154.73694719,0.00038,2]
[312337980,1705794638843,-2139.23248446,0.00038,4]
[312337981,1705794638852,-165.0,0.00038,2]
[312337982,1705794638861,-151.0,0.00038026,4]
[312337983,1705794638870,-1205.82950689,0.00038207,30]
[312337984,1705794638879,-5000.0,0.00038281,7]
[312337985,1705794638888,-404.9851975,0.00038356,2]
[312337986,1705794638897,-5000.0,0.00038371,7]
[312337987,1705794638905,-5000.0,0.00038382,7]
[312337988,1705794638915,-151.0,0.00038404,4]
[312337989,1705794638924,-165.0,0.0003863,14]
[312337990,1705794638934,-151.0,0.00038783,4]
[312337991,1705794638943,-397.8164762,0.00038878,2]
[312337992,1705794638952,-243.452,0.00038891,2]
[312337993,1705794638961,-150.0,0.00038891,2]
[312337994,1705794638970,-150.0,0.00038891,2]
[312337995,1705794638978,-155.0,0.00039,2]
[312337996,1705794638988,-1500.0,0.00039,2]
[312337997,1705794638997,-806.0,0.00039,2]
[312337998,1705794639006,-151.0,0.00039161,4]
[312337999,1705794639015,-151.0,0.00039539,4]
[312338000,1705794639024,-160.0,0.00039541,30]
[312338001,1705794639032,-170.87,0.00039541,2]
[312338002,1705794639041,-170.87,0.00039541,2]
[312338003,1705794639051,-170.87,0.00039541,2]
[312338004,1705794639060,-170.87,0.00039541,2]
[312338005,1705794639069,-500.0,0.00039541,4]
[312338006,1705794639078,-500.0,0.00039541,4]
[312338007,1705794639087,-537.7359098,0.00039541,4]
[312338008,1705794639096,-500.0,0.00039541,4]
[312338009,1705794639105,-156.5050437,0.00039541,4]
[312338010,1705794639113,-500.0,0.00039541,4]
[312338011,1705794639122,-306.1519178,0.00039541,4]
[312338012,1705794639131,-500.0,0.00039541,4]
[312338013,1705794639140,-500.0,0.00039541,4]
[312338014,1705794639149,-297.82193526,0.00039541,4]
[312338015,1705794639159,-500.0,0.00039541,4]
[312338016,1705794639168,-500.0,0.00039541,7]
[312338017,1705794639178,-279.56723931,0.00039541,7]
[312338018,1705794639188,-500.0,0.00039541,7]
[312338019,1705794639198,-500.0,0.00039541,7]
[312338020,1705794639206,-463.32715998,0.00039541,7]
[312338021,1705794639216,-500.0,0.00039541,7]
[312338022,1705794639225,-500.0,0.00039541,7]
[312338023,1705794639235,-596.25660546,0.00039541,7]
[312338024,1705794639244,-500.0,0.00039541,7]
[312338025,1705794639254,-500.0,0.00039541,7]
[312338026,1705794639263,-500.0,0.00039541,7]
[312338027,1705794639272,-191173.1122095,0.00039542,2]